Cogmind - Beta 15 *** ADVENTURER MODE // 2025.07.29 @ 07:57:28 Player: LegoMDS Result: Destroyed by AA-494(j) with Overtuned Pulse Rifle Performance ------------- Evolutions (0) 0 Regions Visited (5) 1000 Robots Destroyed (26) 130 Value Destroyed (960) 960 Prototype IDs (17) 340 Alien Tech Used (0) 0 Bonus (851) 851 TOTAL SCORE: 3281 Bonus ------- Follower Combat Kills 51 Registered with UFD 300 Met Optimus in HQ 500 Cogmind --------- Core Integrity 0/250 Matter 300/300 Energy 60/100 System Corruption 0% Temperature Cool (56) Movement Walking (170) Ox1 Location -8/Scraptown Parts ------- > --- POWER (1) -------- (None) > --- PROPULSION (2) --- Overtuned Titanium Leg Overtuned Titanium Leg > --- UTILITY (2) ------ High-capacity Storage Unit Layered Light Armor Plating > --- WEAPON (2) ------- Gatling Laser Flak Gun > --- INVENTORY (20) --- Titanium Leg Improved Carbon-fiber Leg Scrap Suit Experimental Sensor Array Advanced Targeting Computer Scrap Shield Improved Hacking Suite Field Laser Heavy Machine Gun Improved Datajack Flamer Peak State ------------ > --- POWER ------------ Subdweller Power Source > --- PROPULSION ------- Titanium Leg Titanium Leg > --- UTILITY ---------- High-capacity Storage Unit Experimental Sensor Array > --- WEAPON ----------- Barrage Gun Battle Cannon > --- INVENTORY -------- Subdweller Power Source Subdweller Monowheel Subdweller Monowheel Subdweller Monowheel Cooling System Light Humpback Subdweller Optics Subdweller Optics Advanced Targeting Computer Scrap Shield Scrap Shield Subdweller Laser Subdweller Beam Cannon Subdweller Machine Gun Subdweller Machine Gun Improved Datajack Flamer [Rating: 27] Favorites ----------- Power Subdweller Power Source Engine Subdweller Power Source Power Core Light Nuclear Core Propulsion Titanium Leg Leg Titanium Leg Wheel Subdweller Monowheel Utility High-capacity Storage Unit Device Experimental Sensor Array Storage High-capacity Storage Unit Protection Layered Light Armor Plating Weapon Battle Cannon Energy Gun Particle Gun Ballistic Gun Barrage Gun Ballistic Cannon Battle Cannon Build | -11 -10 -10 -10 -8 -8 ------- Run | Yrd Mat Min Sub Rec Scr Slots Evolved . | . . . . . . Power . | . . . . . . Propulsion . | . . . . . . Utility . | . . . . . . Weapon . | . . . . . . Parts Attached 36 | 6 4 2 12 5 7 Power 6 | 1 . 1 3 1 . Engine 4 | 1 . . 2 1 . Core 2 | . . 1 1 . . Reactor . | . . . . . . Propulsion 12 | 2 . . 4 3 3 Treads . | . . . . . . Leg 6 | . . . . 3 3 Wheel 6 | 2 . . 4 . . Hover . | . . . . . . Flight . | . . . . . . Utility 8 | 1 2 . 2 1 2 Device 2 | . 1 . . 1 . Storage 3 | 1 1 . . . 1 Processor . | . . . . . . Hackware . | . . . . . . Protection 3 | . . . 2 . 1 Artifact . | . . . . . . Weapon 10 | 2 2 1 3 . 2 Energy Gun 4 | 1 1 1 . . 1 Energy Cannon . | . . . . . . Ballistic Gun 4 | 1 1 . 1 . 1 Ballistic Cannon 2 | . . . 2 . . Launcher . | . . . . . . Special Weapon . | . . . . . . Impact Weapon . | . . . . . . Slashing Weapon . | . . . . . . Piercing Weapon . | . . . . . . Special Melee Weapon . | . . . . . . Unidentified Prototypes 1 | . . . . 1 . Parts Lost 6 | . . 1 4 . 1 Power 3 | . . . 3 . . Propulsion 1 | . . . 1 . . Utility . | . . . . . . Weapon 2 | . . 1 . . 1 Highest Loss Streak 2 | . . 1 2 . 1 To Critical Strikes . | . . . . . . Average Backups 13 | 1 6 12 16 16 11 Power . | . 1 2 1 1 . Propulsion 1 | . . 3 1 2 1 Utility 5 | . . 3 6 7 5 Weapon 4 | 1 3 3 4 5 3 Tool/Special . | . . . . . . Unused Backups 25 | . 2 . 6 1 16 Power 2 | . 1 . 1 . . Propulsion 2 | . . . 2 . . Utility 8 | . . . . . 8 Weapon 11 | . 1 . 3 . 7 Tool/Special 2 | . . . . 1 1 Average Slot Usage (%) 93 | . 87 97 97 99 87 Engine 7 | . 14 4 3 14 5 Core 2 | . . 7 9 . . Leg 16 | . . . . 20 28 Wheel 10 | . 28 28 26 7 . Device 6 | . 2 14 2 13 3 Storage 13 | . 14 14 14 14 13 Protection 6 | . . . 10 . 8 Energy Gun 3 | . 14 13 8 . . Ballistic Gun 12 | . 14 14 11 14 12 Ballistic Cannon 11 | . . . 7 14 13 Peak Build Rating 27 | 6 10 14 21 27 27 Average Rating 20 | 3 8 12 17 25 22 On Entrance 12 | . 6 10 14 20 27 Naked Turns . | . . . . . . Heaviest Build 59 | 14 53 53 59 58 52 Greatest Support 40 | 26 26 26 40 34 38 Greatest Overweight (x) 17 | . 2 2 3 17 16 Average Overweight (x) 1 | . . 1 1 1 1 Largest Inventory Capacity 25 | 8 20 20 20 20 25 Average Capacity 19 | 6 14 20 20 20 19 Most Carried 20 | 5 12 14 20 20 20 Average Carried 16 | 2 7 12 17 19 14 Final Capacity 20 | 8 20 20 20 20 20 Final Carried 20 | 2 11 13 20 20 13 Class Distribution -------------------- 97% | Mutant Dominant Class ---------------- Mutant | -10/Materials Mutant | -10/Mines Mutant | -10/Subcaves Mutant | -8/Recycling Mutant | -8/Scraptown Resources | -11 -10 -10 -10 -8 -8 ----------- Run | Yrd Mat Min Sub Rec Scr Matter Collected 1069 | 210 161 51 482 60 105 Remotely . | . . . . . . Salvage Created 906 | . 287 81 336 . 202 Parts 37 | . 15 2 14 . 6 Haulers Intercepted 1 | . 1 . . . . Recyclers Shooed . | . . . . . . Parts Field Recycled . | . . . . . . Retrieved Matter . | . . . . . . Parts Self-Destructed 19 | . . . 19 . . Prevented . | . . . . . . Kills | -11 -10 -10 -10 -8 -8 ------- Run | Yrd Mat Min Sub Rec Scr Combat Hostiles Destroyed 21 | . 5 2 11 . 3 Guns 16 | . 5 2 7 . 2 Cannons 5 | . . . 4 . 1 Classes Destroyed 6 | . 3 . 2 . 1 Hauler 1 | . 1 . . . . Turret 2 | . . . 2 . . Watcher 2 | . 2 . . . . Grunt 11 | . 5 2 4 . . Subdweller 7 | . . . 7 . . Scrapper 3 | . . . . . 3 Best Kill Streak 5 | . 5 2 2 . 2 Combat Bots Only 4 | . 4 2 2 . 2 Max Kills in Single Turn 1 | . 1 1 1 . 1 Gunslinging . | . . . . . . Exploded . | . . . . . . Melee . | . . . . . . Uniques/NPCs Destroyed . | . . . . . . Combat | -11 -10 -10 -10 -8 -8 -------- Run | Yrd Mat Min Sub Rec Scr Hostile Shots Fired 121 | . 15 9 81 . 16 Missed 33 | . 2 2 25 . 4 Hits 88 | . 13 7 56 . 12 Projectile 88 | . 13 7 56 . 12 Damage Taken 1223 | . 140 82 812 . 189 Core 269 | . 50 10 157 . 52 Absorbed by Shields . | . . . . . . Ignored by Resistances 335 | . 42 24 217 . 52 Core Remaining (%) 100 | 100 . . . . . Volleys Fired 85 | . 21 9 50 . 5 Largest 2 | . 2 2 2 . 2 Hottest 108 | . 88 88 88 . 108 Shots Fired 159 | . 42 15 92 . 10 Gun 120 | . 42 15 54 . 9 Cannon 39 | . . . 38 . 1 Launcher . | . . . . . . Special . | . . . . . . Kinetic 112 | . 21 9 76 . 6 Thermal 47 | . 21 6 16 . 4 Explosive . | . . . . . . Electromagnetic . | . . . . . . Robot Hit Streak 35 | . 29 9 35 . 21 Robot Miss Streak 2 | . 1 1 2 . 2 Penetration Max . | . . . . . . Secondary Targets 3 | . 1 . 1 . 1 Max Gunslinging Chain 1 | . 1 . 1 . 1 Shots Hit Robots 137 | . 36 13 79 . 9 Core Hits 49 | . 13 4 22 . 10 Critical Kills . | . . . . . . Critical Parts Destroyed 1 | . 1 . . . . Critical Strikes 2 | . 1 . 1 . . Destroy 1 | . 1 . . . . Blast 1 | . . . 1 . . Melee Attacks . | . . . . . . Impact . | . . . . . . Slashing . | . . . . . . Piercing . | . . . . . . Sneak Attacks . | . . . . . . Combat Hostiles . | . . . . . . Follow-up Attacks . | . . . . . . Damage Inflicted 2424 | . 555 205 1467 . 197 Guns 1714 | . 555 205 782 . 172 Cannons 710 | . . . 685 . 25 Explosions . | . . . . . . Melee . | . . . . . . Ramming . | . . . . . . Kinetic 1795 | . 260 127 1291 . 117 Thermal 629 | . 295 78 176 . 80 Explosive . | . . . . . . Electromagnetic . | . . . . . . Impact . | . . . . . . Slashing . | . . . . . . Piercing . | . . . . . . Highest Corruption . | . . . . . . Average Corruption . | . . . . . . Corruption Purged . | . . . . . . Corruption Blocked . | . . . . . . Overload Shots . | . . . . . . Overflow Damage . | . . . . . . Projectiles . | . . . . . . Explosions . | . . . . . . Melee . | . . . . . . Knockbacks 6 | . . . 6 . . Impact . | . . . . . . Kinetic 6 | . . . 6 . . Secondary . | . . . . . . Self-Inflicted Damage . | . . . . . . Shots . | . . . . . . Rammed . | . . . . . . Targets Rammed . | . . . . . . Kicked . | . . . . . . Crushed . | . . . . . . Highest Temperature 290 | . 290 227 106 . 244 Average Temperature 102 | . 126 122 33 . 122 Received Heat Transfer 615 | . 102 57 324 . 132 Siege Activations . | . . . . . . Martial Activations . | . . . . . . Shielding Activations . | . . . . . . Robots Disrupted . | . . . . . . Combat Hostiles . | . . . . . . Robots Corrupted . | . . . . . . Combat Hostiles . | . . . . . . Parts Fried . | . . . . . . Impact Corruptions . | . . . . . . Robots Melted . | . . . . . . Combat Hostiles . | . . . . . . Parts Melted 3 | . 1 . . . 2 Heat Transferred 1427 | . 703 185 444 . 95 Parts Sabotaged . | . . . . . . Parts Stolen . | . . . . . . Parts Stripped . | . . . . . . Power Chain Reactions . | . . . . . . Alert | -11 -10 -10 -10 -8 -8 ------- Run | Yrd Mat Min Sub Rec Scr Maximum Alert Level . | . . . . . . Low Security (%) 100 | 100 100 100 . 100 . Level 1 . | . . . . . . Level 2 . | . . . . . . Level 3 . | . . . . . . Level 4 . | . . . . . . Level 5 . | . . . . . . High Security . | . . . . . . Max Security . | . . . . . . Peak Influence 87 | . 87 43 . 34 . Initial 24 | . . 17 . 24 . Average 6 | . 32 8 . . . Influence Increases 496 | . 171 53 244 28 . Destroy 0b10 Robot/C 320 | . 100 40 180 . . Destroy 0b10 Robot/NC 15 | . 15 . . . . Destroy Leader 76 | . 36 10 30 . . Allied During Kill 7 | . . 3 4 . . Successful Hack 48 | . 20 . . 28 . Lose Combat Pursuer 30 | . . . 30 . . Influence Decreases 496 | . 119 105 184 88 . Entered New Map 71 | . . 35 . 36 . Time Decay 375 | . 119 60 144 52 . Lost Part 30 | . . 10 20 . . Lost Ally 20 | . . . 20 . . Squads Dispatched 2 | . 2 . . . . Investigation 2 | . 2 . . . . Extermination . | . . . . . . Reinforcement . | . . . . . . Assault . | . . . . . . Garrison . | . . . . . . Intercept . | . . . . . . Searches Triggered . | . . . . . . Construction Impeded . | . . . . . . Haulers Reinforced . | . . . . . . Active Scanning Responses . | . . . . . . Cargo Convoy Interrupts . | . . . . . . Stealth | -11 -10 -10 -10 -8 -8 --------- Run | Yrd Mat Min Sub Rec Scr Distress Signals 1 | . 1 . . . . Communications Jammed . | . . . . . . Distress Signals . | . . . . . . Times Spotted 33 | . 8 3 17 . 5 Peak Tracking Total 4 | . 4 2 4 . 3 Tactical Retreats 2 | . . 1 1 . . Traps | -11 -10 -10 -10 -8 -8 ------- Run | Yrd Mat Min Sub Rec Scr Traps Triggered 3 | . 1 . 2 . . Indirectly . | . . . . . . Trap Hack Attempts . | . . . . . . Triggered . | . . . . . . Disarmed . | . . . . . . Reprogrammed . | . . . . . . Reused . | . . . . . . Traps Extracted . | . . . . . . Installed . | . . . . . . Triggered . | . . . . . . Machines | -11 -10 -10 -10 -8 -8 ---------- Run | Yrd Mat Min Sub Rec Scr Machines Disabled 1 | . . . 1 . . Max in Single Turn 1 | . . . 1 . . Machines Repaired . | . . . . . . Machines Dismantled . | . . . . . . Machines Sabotaged . | . . . . . . Overloaded Fab Kills . | . . . . . . Hacking | -11 -10 -10 -10 -8 -8 --------- Run | Yrd Mat Min Sub Rec Scr Machines Accessed 19 | . 3 1 1 5 9 Terminals 8 | . 3 . . 5 . Fabricators . | . . . . . . Repair Stations . | . . . . . . Recycling Units . | . . . . . . Scanalyzers . | . . . . . . Garrison Access . | . . . . . . Total Hacks 74 | . 7 1 5 13 48 Successful 66 | . 5 1 5 7 48 Failed 8 | . 2 . . 6 . Catastrophic 2 | . . . . 2 . Database Lockouts . | . . . . . . Manual 6 | . . . . 6 . Terminals 20 | . 7 . . 13 . Fabricators . | . . . . . . Repair Stations . | . . . . . . Recycling Units . | . . . . . . Scanalyzers . | . . . . . . Garrison Access . | . . . . . . Terminal Hacks 66 | . 5 1 5 7 48 Record 50 | . . . 5 . 45 Part Schematic 1 | . . . . 1 . Robot Analysis 2 | . . . . . 2 Prototype ID Bank 6 | . 3 . . 3 . Open Door 1 | . . 1 . . . Emergency Access Points 1 | . . . . 1 . Hauler Manifests 1 | . 1 . . . . Registered Components 1 | . . . . 1 . Zone Layout 2 | . 1 . . 1 . Proto ID Catalog 1 | . . . . . 1 Fabricator Hacks . | . . . . . . Repair Station Hacks . | . . . . . . Recycling Unit Hacks . | . . . . . . Scanalyzer . | . . . . . . Garrison Access Hacks . | . . . . . . Unauthorized Hacks . | . . . . . . Terminals . | . . . . . . Fabricators . | . . . . . . Repair Stations . | . . . . . . Recycling Units . | . . . . . . Scanalyzers . | . . . . . . Garrison Access . | . . . . . . Data Cores Recovered . | . . . . . . Used . | . . . . . . Hacking Detections 4 | . 2 . . 2 . Full Trace Events 3 | . 1 . . 2 . Feedback Events . | . . . . . . Feedback Blocked . | . . . . . . Robot Schematics Acquired . | . . . . . . Robots Built . | . . . . . . Authchips . | . . . . . . Time . | . . . . . . Total Robot Build Rating . | . . . . . . Part Schematics Acquired 1 | . . . . 1 . Parts Built . | . . . . . . Authchips . | . . . . . . Time . | . . . . . . Total Part Build Rating . | . . . . . . Parts Repaired . | . . . . . . Time . | . . . . . . Parts Recycled . | . . . . . . Recycled Matter . | . . . . . . Retrieved Matter . | . . . . . . Retrieved Components . | . . . . . . Parts Scanalyzed . | . . . . . . Part Schematics Acquired . | . . . . . . Parts Damaged . | . . . . . . Bothacking | -11 -10 -10 -10 -8 -8 ------------ Run | Yrd Mat Min Sub Rec Scr Used RIF Installer . | . . . . . . Robots Hacked . | . . . . . . Non-combat . | . . . . . . Combat . | . . . . . . Robot Hacks Applied . | . . . . . . Relay Couplers Released . | . . . . . . Fabnet Peak Effective % . | . . . . . . Robots Rewired . | . . . . . . Allies Hacked . | . . . . . . Hacks Repelled . | . . . . . . Allies | -11 -10 -10 -10 -8 -8 -------- Run | Yrd Mat Min Sub Rec Scr Total Allies 3 | . . 3 . . . Largest Group 3 | . . 3 3 . . Highest-Rated Group 40 | . . 40 40 . . Highest-Rated Ally 16 | . . 16 16 . . Total Orders . | . . . . . . Ally Attacks 43 | . . . 43 . . Total Damage 444 | . . . 444 . . Kills 4 | . . . 4 . . Allies Corrupted . | . . . . . . Allies Melted 2 | . . . . . 2 Intel | -11 -10 -10 -10 -8 -8 ------- Run | Yrd Mat Min Sub Rec Scr Active Infowar (turns) 1374 | . 44 142 . 1188 . Sensors 1188 | . . . . 1188 . ECM 186 | . 44 142 . . . Robot Analysis Total 2 | . . . . . 2 Derelict Logs Recovered 7 | . . 1 1 . 5 Drone Launches . | . . . . . . Drone Recoveries . | . . . . . . Exploration | -11 -10 -10 -10 -8 -8 ------------- Run | Yrd Mat Min Sub Rec Scr Turns Passed 6920 | 44 317 298 1755 1647 2859 Spaces Moved 3934 | 37 239 204 1296 731 1427 Core 18 | 8 . . . 9 1 Treads . | . . . . . . Legs 1989 | . . . . 563 1426 Wheels 1927 | 29 239 204 1296 159 . Hover . | . . . . . . Flight . | . . . . . . Fastest Speed 50 | 50 90 105 105 130 125 Average Speed 163 | 81 98 117 121 213 196 Slowest Speed 900 | 90 120 120 145 900 850 Overloaded Moves . | . . . . . . Propulsion Burnouts . | . . . . . . Robots Hopped . | . . . . . . Potential Cave-ins . | . . . . . . Cave-ins Triggered . | . . . . . . Exploration Rate (%) 57 | 3 50 31 79 94 85 Regions Visited 5 Branch Regions 4 Pre-discovered Areas 3 | . . . 2 . 1 Known Exits Taken 1 | . . . 1 . . Unknown Exits Taken 4 | 1 1 1 . 1 . Scrap Searched 18 | . . . 15 . 3 Spaces Dug . | . . . . . . Terrain Destroyed 1 | . . . 1 . . Melee . | . . . . . . Projectile 1 | . . . 1 . . AOE . | . . . . . . Terrain Rammed . | . . . . . . Walls Destroyed . | . . . . . . Machines Disabled . | . . . . . . Actions | -11 -10 -10 -10 -8 -8 --------- Run | Yrd Mat Min Sub Rec Scr Total 4280 | 50 283 250 1397 821 1479 Wait 113 | . . 31 4 78 . Move 3929 | 36 238 203 1295 730 1427 Hop . | . . . . . . Pick Up 67 | 8 15 4 17 3 20 Fast Attach 4 | . . . 4 . . Attach 21 | 6 2 2 5 1 5 Detach 1 | . . . 1 . . Swap 16 | . 2 . 6 5 3 Drop 41 | . 5 1 15 4 16 Fire 85 | . 21 9 50 . 5 Melee . | . . . . . . Ram . | . . . . . . Kick . | . . . . . . Crush . | . . . . . . Escape Stasis . | . . . . . . Rewire 3 | . . . . . 3 Trap . | . . . . . . Miscellaneous . | . . . . . . Route ------- -11/Scrapyard -10/Materials (discovered 3 exits: [*Mat] / *Min x2) -10/Mines (discovered 2 exits: [*Exi] / *Sub) -10/Subcaves (discovered 3 exits: *Mat x2 / *Rec) -8/Recycling (discovered 2 exits: [*Fac] / *Scr) -8/Scraptown (discovered 1 exit: [*Fac]) History --------- Turn | Location | Event 3 | -11/Scrapyard | Discovered new exit (range 16) 45 | -11/Scrapyard | Entered Materials 135 | -10/Materials | Discovered new exit (range 15) 251 | -10/Materials | Discovered new exit (range 8) 311 | -10/Materials | Discovered new exit (range 16) 316 | -10/Materials | Build established: Mutant 362 | -10/Materials | Entered Mines 366 | -10/Mines | Assisted by bots powering up and referring to "LRC-V3" 402 | -10/Mines | Found a damaged Exp. Sensor Array with a note attached 404 | -10/Mines | Found Prototype Device 475 | -10/Mines | Met a Derelict who couldn't figure out how to use a Trap Extractor 560 | -10/Mines | Deemed a non-threat by the Exiles lab entrance 560 | -10/Mines | Discovered new exit (range 5) 649 | -10/Mines | Discovered new exit (range 5) 660 | -10/Mines | Entered Subcaves 660 | -10/Subcaves | Accompanied by 3 allies 661 | -10/Subcaves | Identified exit to Recycling 669 | -10/Subcaves | Learned location of Zion (-6) 669 | -10/Subcaves | Met a Zionite searching for "candidates" 1137 | -10/Subcaves | Disturbed a concealed Subdweller 1365 | -10/Subcaves | Core integrity fell below 50% 1588 | -10/Subcaves | Shifting Twisted Machinery released Spk. Treads 1624 | -10/Subcaves | Shifting Twisted Machinery released Lgt. Humpback 1935 | -10/Subcaves | Disturbed a concealed Subdweller 2074 | -10/Subcaves | Visited Clippyterm 2077 | -10/Subcaves | Learned Research security intel 2077 | -10/Subcaves | Identified exit to Materials 2162 | -10/Subcaves | A swath of the cavern ceiling suddenly collapsed 2210 | -10/Subcaves | Core integrity fell below 20% 2415 | -10/Subcaves | Entered Recycling 2486 | -8/Recycling | Identified Exp. Sensor Array 3634 | -8/Recycling | Discovered new exit (range 8) 4014 | -8/Recycling | Scanned before Scraplab entrance 4044 | -8/Recycling | Entered Scraplab 4060 | -8/Recycling | Discovered new exit (range 2) 4062 | -8/Recycling | Entered Scraptown 4292 | -8/Scraptown | Visited TADAMA 4338 | -8/Scraptown | Visited UFD Registry 4338 | -8/Scraptown | Registered with UFD as "Scrapthruster" 4372 | -8/Scraptown | Visited Cyclists 4386 | -8/Scraptown | Entered Cyclist Reading Room 4490 | -8/Scraptown | Visited Comm Corps 4594 | -8/Scraptown | Visited Junk Repository 4684 | -8/Scraptown | Scanned Subdweller tech in exchange for log data 4688 | -8/Scraptown | Learned Research interactive machine intel 4690 | -8/Scraptown | Learned Factory non-interactive machine intel 4692 | -8/Scraptown | Learned location of Testing (-3) 4696 | -8/Scraptown | Learned Factory stockpile data 4912 | -8/Scraptown | Visited CPS Storage 4956 | -8/Scraptown | Visited Scrapoid Research Area 5239 | -8/Scraptown | Discovered new exit (range 11) 5413 | -8/Scraptown | Visited The Evicted 5540 | -8/Scraptown | Visited Junk Repository 5708 | -8/Scraptown | Visited Analyses Database 5794 | -8/Scraptown | Visited Abandonware Association 5808 | -8/Scraptown | Learned abandonware demo "OVRCLOCK.EXE" 5814 | -8/Scraptown | Learned abandonware demo "KABOOM.EXE" 5814 | -8/Scraptown | Learned abandonware demo "TRNCOAT.EXE" 5870 | -8/Scraptown | Visited Curators Association 5921 | -8/Scraptown | Visited Science Testing Area 5952 | -8/Scraptown | Visited Scrap Suit Storage 5966 | -8/Scraptown | Found Scrap Suit 6027 | -8/Scraptown | Visited LU-1G1's Boring Crew 6154 | -8/Scraptown | Visited Science Guys 6412 | -8/Scraptown | Delivered Scrap Shield to a Scientist 6617 | -8/Scraptown | Met Optimus 6617 | -8/Scraptown | Accepted into 0bPrime 6826 | -8/Scraptown | Civil war broke out across Scraptown 6921 | -8/Scraptown | Destroyed by AA-494(j) with Overtuned Pulse Rifle Last Messages --------------- malfunctioning. Ovr. Titanium Leg recovered from malfunction. Machine disabled. Battle Cannon destroyed. 5L-HRA(j) overheating. D9-ZF8(j) heat spikes uncontrollably. 5L-HRA(j) heat damages Mak. Salvage Targeting Computer. Mak. Microdissipator Network melted. Lgt. Deuterium Engine melted. D9-ZF8(j) destroyed. Switching to secondary target: 5L-HRA(j). 5L-HRA(j) overheating. 5L-HRA(j) heat short circuits Scrap Suit. 5L-HRA(j) overheating. 5L-HRA(j) destroyed. Acquired 55 matter. Penetrated by Bolt. Bolt penetrates Wall. Map ----- +----------------------------------------------------+ | """### #??#" " " "#????# ## #?????? | | "#?# #??#"" """#????# ## #?????? | | "#?# #??#"" " "#????# ## #?????? | | "#?# #??#" " "#????# """"" ## #?????? | | "#?# #??#" "" "#????# """"" ## #?????? | | "#?# #??#"" " ""#????# """"" ## #?????? | | """#?# #??#"""" " ""#????# ## #?????? | | ####?# #??#"" " """"#????# ## #?????? | | ##???# #???""""""""""#????#?########## #?????? | | "#???# #???#??#######????????????????# #?????? | | "#???# #??????????????????????######## #?????? | | #???# #??????????????????????"""""""" #?????? | | ##### #?????????????????????""" """""!! #?????? | | ##????????????##?????""" " ""%= #?????? | | #???????????? #?????? | | ##????##????## ##??#"" "" "" " #?????? | | ## ### ##????"""???""" "#?????""""""""" #?????? | | ?# #???#????"" ""?#""" "#????????"""""" #?????? | | ## ######???"" "?#""" "#????????###### #?????? | | "" """""#??#" ""##"" "#?############# #?????? | | " " "#??#"" ""##"" "#?#"""""""""""# #?????? | | "#??#"" ""##" "#?#""]!/][]! "# #?????? | | "" """""#??#"" ""##"| "#?#""=!! !!/ "# #?????? | | ## ######??#" ""##"" "#?#"" "# #?????? | | ## #########""%="##"" ""###""" """""""# #?????? | | j=! * =% @%[ #?????? | | h %*= [% !!= #?????? | | "######"""" """""######"""[ ##""" """#####?????? | | "#????#" "#????#"" |"##"" "#?????????? | | "#????#" "#????#" ""##"" "#?????????? | | "#????#" ! = "#????#" ""##" "#?????????? | | "#????#"""""% "#????#" "#?????????? | | "#????#""""""""""#????#"""""""##"""""""#?????????? | | ##????############????##################?????????? | | | | | | | | | | | | | | | | | | | | | | | | | | | | | | | | | +----------------------------------------------------+ Best States ------------- Heat Dissipation 25 Energy Generation 15 Energy Capacity 250 Matter Stores 300 Matter Capacity 300 Sight Range 16 Robot Scan Range 20 Terrain Scan Density 10 ECM Strength 1 Armor Coverage 225 Resistance: KI 30 Resistance: TH 20 Resistance: EX 20 Resistance: EM 20 Resistance: I 20 Resistance: S 20 Resistance: P 20 Evasion (%) 45 Offensive Hacking 10 Item Schematics ----------------- Adv. Melee Analysis Suite | -8/Recycling | Hacked Robot Schematics ------------------ None Fabricated ------------ Nothing Repaired ---------- Nothing Alien Tech Used ----------------- None Achievements -------------- None Challenges ------------ None Game ------ Seed CorruptionSmartSplitter Manual? 0 Play Time 00:41:39 Cumulative 86.5 hours Start 2025.07.28 @ 19:14:42 End 2025.07.29 @ 07:57:28 Sessions 1 Manual Loads 0 Difficulty Adventurer Special Mode None Game No. 115 Rogue 13 Adventurer 102 Explorer 0 Win Type - Total 0 Types 0/0/0/0/0/0/0/0/0/0 Lore% 64 Gallery% 59 Achievement% 46 Wizard Run 0 Options --------- Layout 1 ASCII 0 Keyboard 0 Movement Mouse Keybinds 0 Fullscreen 1 Font 32/SmallcapsGlow Map View 50x35 Zoom Use 0% Tactical HUD 0 Map Filters NONE Filters NONE Steam 1 RUN: 5a08fd5e-473a-4c74-ad7b-401e2f324dbb